Cogmind - Beta 13 @@@ ROGUE MODE // 2024.04.02 @ 00:00:46 Player: BionicSandwich Result: Destroyed by Shrapnel Trap Performance ------------- Evolutions (0) 0 Regions Visited (3) 600 Robots Destroyed (27) 135 Value Destroyed (466) 466 Prototype IDs (0) 0 Alien Tech Used (0) 0 Bonus (0) 0 TOTAL SCORE: 1201 Bonus ------- None Cogmind --------- Core Integrity 0/250 Matter 7/300 Energy 226/250 System Corruption 4% Temperature Cool (2) Movement Treading (160) Location -10/Subcaves Parts ------- > --- POWER (1) -------- Ion Engine > --- PROPULSION (2) --- Light Treads Light Treads > --- UTILITY (2) ------ Large Storage Unit Signal Interpreter > --- WEAPON (2) ------- Subdweller Machine Gun Mini Grenade Launcher > --- INVENTORY (15) --- Light Ion Engine Sensor Array Faulty Experimental Sensor Array Propulsion Shielding Weapon Shielding Medium Armor Plating Medium Armor Plating Medium Armor Plating Light Assault Rifle Peak State ------------ > --- POWER ------------ Ion Engine > --- PROPULSION ------- Light Treads Light Treads > --- UTILITY ---------- Large Storage Unit Signal Interpreter > --- WEAPON ----------- Subdweller Machine Gun Mini Grenade Launcher > --- INVENTORY -------- Ion Engine Light Ion Engine Light Treads Sensor Array Experimental Sensor Array Propulsion Shielding Weapon Shielding Medium Armor Plating Medium Armor Plating Medium Armor Plating Light Assault Rifle [Rating: 11] Favorites ----------- Power Ion Engine Engine Ion Engine Propulsion Light Treads Treads Light Treads Utility Signal Interpreter Device Sensor Array Storage Large Storage Unit Processor Signal Interpreter Protection Weapon Shielding Weapon Assault Rifle Ballistic Gun Assault Rifle Launcher Grenade Launcher Build | -11 -10 -10 -10 ------- Run | Yrd Mat Min Sub Slots Evolved . | . . . . Power . | . . . . Propulsion . | . . . . Utility . | . . . . Weapon . | . . . . Parts Attached 21 | 5 8 1 7 Power 2 | . 1 . 1 Engine 2 | . 1 . 1 Core . | . . . . Reactor . | . . . . Propulsion 4 | 2 . . 2 Treads 4 | 2 . . 2 Leg . | . . . . Wheel . | . . . . Hover . | . . . . Flight . | . . . . Utility 6 | 1 5 . . Device 1 | . 1 . . Storage 3 | 1 2 . . Processor 1 | . 1 . . Hackware . | . . . . Protection 1 | . 1 . . Artifact . | . . . . Weapon 9 | 2 2 1 4 Energy Gun . | . . . . Energy Cannon . | . . . . Ballistic Gun 4 | 2 . . 2 Ballistic Cannon . | . . . . Launcher 5 | . 2 1 2 Special Weapon . | . . . . Impact Weapon . | . . . . Slashing Weapon . | . . . . Piercing Weapon . | . . . . Special Melee Weapon . | . . . . Unidentified Prototypes . | . . . . Parts Lost 3 | . . . 3 Power . | . . . . Propulsion 1 | . . . 1 Utility . | . . . . Weapon 2 | . . . 2 Highest Loss Streak 2 | . . . 2 To Critical Strikes . | . . . . Average Slot Usage (%) 92 | . 96 87 83 Engine 12 | . 11 14 14 Treads 27 | . 28 28 24 Storage 14 | . 14 14 14 Processor 11 | . 10 14 14 Protection 1 | . 2 . . Ballistic Gun 13 | . 14 14 6 Launcher 10 | . 13 1 9 Naked Turns . | . . . . Heaviest Build 30 | 8 30 28 30 Greatest Support 40 | 40 40 40 40 Greatest Overweight (x) 1 | . . . 1 Average Overweight (x) . | . . . . Largest Inventory Capacity 15 | 8 15 15 15 Average Capacity 12 | 6 12 15 15 Most Carried 15 | 4 15 15 15 Average Carried 10 | 2 9 14 13 Final Capacity 15 | 8 15 15 15 Final Carried 15 | 4 15 13 9 Class Distribution -------------------- 100% | Mutant Dominant Class ---------------- Mutant | -10/Materials Mutant | -10/Mines Mutant | -10/Subcaves Resources | -11 -10 -10 -10 ----------- Run | Yrd Mat Min Sub Matter Collected 411 | 84 257 13 57 Remotely . | . . . . Salvage Created 481 | 53 377 13 38 Parts 43 | 1 36 1 5 Haulers Intercepted 1 | . 1 . . Recyclers Shooed . | . . . . Parts Field Recycled . | . . . . Retrieved Matter . | . . . . Parts Self-Destructed 10 | . . . 10 Prevented . | . . . . Kills | -11 -10 -10 -10 ------- Run | Yrd Mat Min Sub Combat Hostiles Destroyed 17 | . 15 . 2 Melee 1 | . . . 1 Guns 1 | . 1 . . AOE 15 | . 14 . 1 Classes Destroyed 8 | 1 5 1 1 Worker 3 | . 3 . . Tunneler 1 | . . 1 . Hauler 1 | . 1 . . Recycler 2 | 1 1 . . Watcher 3 | . 3 . . Swarmer 9 | . 9 . . Grunt 6 | . 6 . . Subdweller 2 | . . . 2 Best Kill Streak 8 | 1 8 1 1 Combat Bots Only 7 | . 7 . 1 Max Kills in Single Turn 3 | 1 3 1 1 Gunslinging . | . . . . Exploded 3 | . 3 . 1 Melee 1 | . . . 1 Uniques/NPCs Destroyed . | . . . . Combat | -11 -10 -10 -10 -------- Run | Yrd Mat Min Sub Hostile Shots Fired 56 | . 31 . 25 Missed 22 | . 10 . 12 Damage Taken 796 | . 271 54 471 Core 251 | . 74 . 177 Absorbed by Shields . | . . . . Redirected to Shielding 11 | . 11 . . Core Remaining (%) 100 | 100 . . . Volleys Fired 44 | 5 28 6 5 Largest 2 | 1 2 1 1 Hottest 50 | 20 50 30 30 Shots Fired 47 | 5 29 8 5 Gun 25 | 5 14 6 . Cannon . | . . . . Launcher 22 | . 15 2 5 Special . | . . . . Kinetic 25 | 5 14 6 . Thermal . | . . . . Explosive 22 | . 15 2 5 Electromagnetic . | . . . . Robot Hit Streak 8 | 5 8 1 4 Robot Miss Streak 2 | . 2 2 1 Penetration Max . | . . . . Secondary Targets . | . . . . Shots Hit Robots 25 | 5 15 1 4 Core Hits 45 | 2 35 2 6 Critical Kills . | . . . . Critical Parts Destroyed 1 | 1 . . . Critical Strikes 1 | 1 . . . Destroy 1 | 1 . . . Melee Attacks . | . . . . Impact . | . . . . Slashing . | . . . . Piercing . | . . . . Sneak Attacks . | . . . . Combat Hostiles . | . . . . Follow-up Attacks . | . . . . Damage Inflicted 1378 | 43 1102 14 219 Guns 190 | 43 136 11 . Cannons . | . . . . Explosions 1164 | . 953 . 211 Melee . | . . . . Ramming 24 | . 13 3 8 Kinetic 190 | 43 136 11 . Thermal . | . . . . Explosive 1164 | . 953 . 211 Electromagnetic . | . . . . Impact . | . . . . Slashing . | . . . . Piercing . | . . . . Highest Corruption 4 | . 4 4 4 Average Corruption 2 | . 1 4 4 Corruption Purged . | . . . . Corruption Blocked . | . . . . Effects 22 | . 6 9 7 Message Errors 8 | . 3 2 3 Matter Fused 7 | . 1 3 3 Heat Flow Errors 1 | . . . 1 Energy Discharges 2 | . 1 1 . Data Loss (minor) 1 | . 1 . . Misfires 2 | . . 2 . Alerts 1 | . . 1 . Overload Shots . | . . . . Overflow Damage 8 | . 8 . . Projectiles . | . . . . Explosions 8 | . 8 . . Melee . | . . . . Knockbacks . | . . . . Impact . | . . . . Kinetic . | . . . . Secondary . | . . . . Self-Inflicted Damage 193 | . 67 55 71 Shots 7 | . 4 1 2 Rammed 9 | . 4 1 4 Targets Rammed 9 | . 4 1 4 Kicked . | . . . . Crushed . | . . . . Highest Temperature 225 | . 1 . 225 Average Temperature 109 | . 1 . 127 Received Heat Transfer 66 | . 66 . . Siege Activations . | . . . . Robots Corrupted . | . . . . Combat Hostiles . | . . . . Parts Fried . | . . . . Impact Corruptions . | . . . . Robots Melted . | . . . . Combat Hostiles . | . . . . Parts Melted . | . . . . Heat Transferred . | . . . . Parts Sabotaged . | . . . . Parts Stolen . | . . . . Parts Stripped . | . . . . Power Chain Reactions . | . . . . Alert | -11 -10 -10 -10 ------- Run | Yrd Mat Min Sub Peak Influence 368 | 5 368 71 . Initial 54 | . 3 54 . Average 185 | 4 232 65 . Maximum Alert Level 1 | . 1 . . Low Security (%) 47 | 100 28 100 . Level 1 52 | . 71 . . Level 2 . | . . . . Level 3 . | . . . . Level 4 . | . . . . Level 5 . | . . . . High Security . | . . . . Max Security . | . . . . Squads Dispatched 2 | . 2 . . Investigation . | . . . . Extermination . | . . . . Reinforcement 2 | . 2 . . Assault . | . . . . Garrison . | . . . . Intercept . | . . . . Searches Triggered . | . . . . Construction Impeded . | . . . . Haulers Reinforced . | . . . . Active Scanning Responses . | . . . . Cargo Convoy Interrupts . | . . . . Stealth | -11 -10 -10 -10 --------- Run | Yrd Mat Min Sub Distress Signals 1 | . 1 . . Communications Jammed . | . . . . Distress Signals . | . . . . Times Spotted 26 | . 24 . 2 Peak Tracking Total 6 | . 6 . 1 Tactical Retreats . | . . . . Traps | -11 -10 -10 -10 ------- Run | Yrd Mat Min Sub Traps Triggered 6 | . 3 . 3 Indirectly . | . . . . Trap Hack Attempts . | . . . . Triggered . | . . . . Disarmed . | . . . . Reprogrammed . | . . . . Reused . | . . . . Traps Extracted . | . . . . Installed . | . . . . Triggered . | . . . . Machines | -11 -10 -10 -10 ---------- Run | Yrd Mat Min Sub Machines Disabled 2 | . 2 . . Max in Single Turn 1 | . 1 . . Machines Repaired . | . . . . Machines Dismantled . | . . . . Machines Sabotaged . | . . . . Overloaded Fab Kills . | . . . . Hacking | -11 -10 -10 -10 --------- Run | Yrd Mat Min Sub Machines Accessed 5 | . 5 . . Terminals 4 | . 4 . . Fabricators . | . . . . Repair Stations . | . . . . Recycling Units 1 | . 1 . . Scanalyzers . | . . . . Garrison Access . | . . . . Total Hacks 12 | . 12 . . Successful 4 | . 4 . . Failed 8 | . 8 . . Catastrophic 2 | . 2 . . Database Lockouts . | . . . . Manual . | . . . . Terminals 8 | . 8 . . Fabricators . | . . . . Repair Stations . | . . . . Recycling Units 4 | . 4 . . Scanalyzers . | . . . . Garrison Access . | . . . . Terminal Hacks 3 | . 3 . . Emergency Access Points 2 | . 2 . . Transport Status 1 | . 1 . . Fabricator Hacks . | . . . . Repair Station Hacks . | . . . . Recycling Unit Hacks 1 | . 1 . . Process 1 | . 1 . . Scanalyzer . | . . . . Garrison Access Hacks . | . . . . Unauthorized Hacks . | . . . . Terminals . | . . . . Fabricators . | . . . . Repair Stations . | . . . . Recycling Units . | . . . . Scanalyzers . | . . . . Garrison Access . | . . . . Data Cores Recovered . | . . . . Used . | . . . . Hacking Detections 4 | . 4 . . Full Trace Events 1 | . 1 . . Feedback Events . | . . . . Feedback Blocked . | . . . . Robot Schematics Acquired . | . . . . Robots Built . | . . . . Authchips . | . . . . Time . | . . . . Total Robot Build Rating . | . . . . Part Schematics Acquired . | . . . . Parts Built . | . . . . Authchips . | . . . . Time . | . . . . Total Part Build Rating . | . . . . Parts Repaired . | . . . . Time . | . . . . Parts Recycled . | . . . . Recycled Matter 109 | . 109 . . Retrieved Matter . | . . . . Retrieved Components . | . . . . Parts Scanalyzed . | . . . . Part Schematics Acquired . | . . . . Parts Damaged . | . . . . Bothacking | -11 -10 -10 -10 ------------ Run | Yrd Mat Min Sub Used RIF Installer . | . . . . Robots Hacked . | . . . . Non-combat . | . . . . Combat . | . . . . Robot Hacks Applied . | . . . . Relay Couplers Released . | . . . . Fabnet Peak Effective % . | . . . . Robots Rewired . | . . . . Allies Hacked . | . . . . Hacks Repelled . | . . . . Allies | -11 -10 -10 -10 -------- Run | Yrd Mat Min Sub Total Allies . | . . . . Largest Group . | . . . . Highest-Rated Group . | . . . . Highest-Rated Ally . | . . . . Total Orders . | . . . . Ally Attacks . | . . . . Total Damage . | . . . . Kills . | . . . . Allies Corrupted . | . . . . Allies Melted . | . . . . Intel | -11 -10 -10 -10 ------- Run | Yrd Mat Min Sub Robot Analysis Total . | . . . . Derelict Logs Recovered 2 | . . 1 1 Drone Launches . | . . . . Drone Recoveries . | . . . . Exploration | -11 -10 -10 -10 ------------- Run | Yrd Mat Min Sub Turns Passed 1992 | 97 1270 357 268 Spaces Moved 1081 | 50 682 213 136 Core 8 | 8 . . . Treads 1073 | 42 682 213 136 Legs . | . . . . Wheels . | . . . . Hover . | . . . . Flight . | . . . . Fastest Speed 50 | 50 160 160 160 Average Speed 161 | 142 160 160 175 Slowest Speed 240 | 160 160 160 240 Overloaded Moves . | . . . . Propulsion Burnouts . | . . . . Robots Hopped . | . . . . Cave-ins Triggered . | . . . . Exploration Rate (%) 40 | 4 96 47 14 Regions Visited 3 Branch Regions 2 Pre-discovered Areas . | . . . . Known Exits Taken 2 | . 1 1 . Unknown Exits Taken 1 | 1 . . . Scrap Searched 1 | . . . 1 Spaces Dug 7 | . 7 . . Terrain Destroyed 115 | . 80 16 19 Melee . | . . . . Projectile . | . . . . AOE 115 | . 80 16 19 Terrain Rammed . | . . . . Walls Destroyed . | . . . . Machines Disabled . | . . . . Actions | -11 -10 -10 -10 --------- Run | Yrd Mat Min Sub Total 1282 | 72 829 224 157 Wait 91 | 4 87 . . Move 1078 | 49 681 212 136 Hop . | . . . . Pick Up 28 | 9 17 1 1 Fast Attach . | . . . . Attach 14 | 5 3 1 5 Detach 2 | . . . 2 Swap 7 | . 5 . 2 Drop 9 | . 4 3 2 Fire 44 | 5 28 6 5 Melee . | . . . . Ram . | . . . . Kick . | . . . . Crush 9 | . 4 1 4 Escape Stasis . | . . . . Rewire . | . . . . Trap . | . . . . Miscellaneous . | . . . . Route ------- -11/Scrapyard -10/Materials (discovered 4 exits: *Mat x3 / *Min) -10/Mines -10/Subcaves (discovered 1 exit: Rec) History --------- Turn | Location | Event 8 | -11/Scrapyard | Discovered new exit (range 15) 98 | -11/Scrapyard | Entered Materials 309 | -10/Materials | Build established: Mutant 353 | -10/Materials | Destroyed 7 combat bots 639 | -10/Materials | Discovered new exit (range 7) 647 | -10/Materials | Identified exit to Materials 829 | -10/Materials | Discovered exit to Materials (range 12) 1073 | -10/Materials | Discovered exit to Materials (range 10) 1358 | -10/Materials | Discovered new exit (range 7) 1366 | -10/Materials | Identified exit to Mines 1368 | -10/Materials | Entered Mines 1381 | -10/Mines | Met a Derelict bent on vengeance 1417 | -10/Mines | Identified exit to Subcaves 1527 | -10/Mines | Found a damaged Exp. Sensor Array with a note attached 1532 | -10/Mines | Found Prototype Device 1630 | -10/Mines | Found a hidden stash of uninstalled traps 1725 | -10/Mines | Entered Subcaves 1762 | -10/Subcaves | Identified exit to Recycling 1868 | -10/Subcaves | Core integrity fell below 50% 1928 | -10/Subcaves | A swath of the cavern ceiling suddenly collapsed 1957 | -10/Subcaves | Core integrity fell below 20% 1993 | -10/Subcaves | Destroyed by Shrapnel Trap Last Messages --------------- Critical hit (Impale). Triggered Piercing Trap. Spikes shoot up from the floor. Critical hit (Impale). ABYCL,I ZFPZ69SLRV3ODF5KKOE:BTHG A swath of the cavern ceiling suddenly collapses. Mni. Grenade Launcher destroyed. 1WL:X PDEBZPBGERDI=6,CA 8=HZCHWC Q2-YW8(R) destroyed. [Achievement: Fist Fight] Acquired 35 matter. Acquired Sub. Machine Gun. System corrupted: Heat flow error (+265). Dropped Ion Engine. Dropped Lgt. Treads. Triggered Shrapnel Trap. An expanding cloud of shrapnel blasts out in all directions. Map ----- +----------------------------------------------------+ | ???????????????## ## ## #??### | | ????????????????### #### #? ###????# | | ??????????????????# ###??## #?# ##??????#### | | ??????????????????# ##?????## ??##??????????# | | ??????????????????# #???????# ??????????????# | | ??????????????????# #??????? ??????????????# | | ??????????????????# ##??????# #?????????????? | | ??????????????????# #??????# #?????????????? | | ??????????????????# ##??????# ##?????????????? | | ??????????????????## #????????# #??????????????? | | ??????????????????# ##??##????###??????????????? | | ??????????????????## #?# ##??????????? ????????? | | ??????????????????## ## #??????### #????????? | | ??????????????????# ^ #???#### ?????????? | | ??????????????????## ##?## #???????????? | | ???????????????????# ### #????????????? | | ???????????????????# #?????????????????? | | ??????????????????## ##????????????????? | | ??????????????????# # ##???????????????? | | ??????????????????#### #### #???????????????? | | ?????????????????????## ## ###???????????????? | | ??????????????????????## ###??###????????????? | | ??????????????????#????# ###### ##???????????? | | ??????????????????# ## #"""##!""#???????????? | | ?????????????????# ;#""#"#"###???????????? | | ????????????????# ######@= ##"#"#&### ??????? | | ????????????????????????##*# ;###"!""#######?????? | | ?????????????????????????######?##""###??????????? | | ?????????????????????????????????####????????????? | | ?????????????????????????????????????????????????? | | ?????????????????????????????????????????????????? | | ?????????????????????????????????????????????????? | | ?????????????????????????????????????????????????? | | ?????????????????????????????????????????????????? | | ?????????????????????????????????????????????????? | | ?????????????????????????????????????????????????? | | ?????????????????????????????????????????????????? | | ?????????????????????????????????????????????????? | | ?????????????????????????????????????????????????? | | ?????????????????????????????????????????????????? | | ?????????????????????????????????????????????????? | | ?????????????????????????????????????????????????? | | ?????????????????????????????????????????????????? | | | | | | | | | | | | | | | +----------------------------------------------------+ Best States ------------- Heat Dissipation 25 Energy Generation 10 Energy Capacity 250 Matter Stores 149 Matter Capacity 300 Sight Range 16 Robot Scan Range 14 Terrain Scan Density 10 Weapon Shielding 33 Evasion (%) 50 Recoil Reduction 2 Item Schematics ----------------- None Robot Schematics ------------------ None Fabricated ------------ Nothing Alien Tech Used ----------------- None Achievements -------------- Fist Fight Maybe Next Time I'll Detach My Launcher Challenges ------------ None Game ------ Seed TransportInertialMultitool Manual? 0 Play Time 00:18:28 Cumulative 2.1 hours Start 2024.04.01 @ 23:44:30 End 2024.04.02 @ 00:00:46 Sessions 1 Manual Loads 0 Difficulty Rogue Special Mode None Game No. 8 Rogue 8 Adventurer 0 Explorer 0 Win Type - Total 0 Types 0/0/0/0/0/0/0/0/0 Lore% 7 Gallery% 9 Achievement% 10 Wizard Run 0 Options --------- Layout 1 ASCII 0 Keyboard 0 Movement Mouse Keybinds 0 Fullscreen 1 Font 48/Smallcaps Map View 50x35 Zoom Use 0% Tactical HUD 0 Map Filters NONE Filters NONE Steam 1 RUN: 0a89f673-0a4a-4ebf-ba9c-bbc078924603